Cogmind - Beta 15 @@@ ROGUE MODE // 2025.08.30 @ 07:08:19 Player: mm79 Result: Self-destructed Performance ------------- Evolutions (2) 1000 Regions Visited (7) 1400 Robots Destroyed (30) 150 Value Destroyed (646) 646 Prototype IDs (44) 880 Alien Tech Used (0) 0 Bonus (384) 384 TOTAL SCORE: 4460 Bonus ------- Follower Combat Kills 84 Aligned with FarCom 300 Cogmind --------- Core Integrity 537/550 Matter 263/300 Energy 265/265 System Corruption 0% Temperature Cool (0) Movement Walking (120) Location -8/Materials Parts ------- > --- POWER (1) -------- Improved Ion Engine > --- PROPULSION (4) --- Aluminum Leg Aluminum Leg Aluminum Leg Carbon-fiber Leg > --- UTILITY (4) ------ Medium Storage Unit Structural Scanner Light Armor Plating Hardened Light Armor Plating > --- WEAPON (2) ------- Rocket Launcher Longsword +1 > --- INVENTORY (10) --- Deuterium Engine Carbon-fiber Leg Structural Scanner Hardlight Generator Shield Generator Hacking Suite System Shield Plasma Cutter Heavy Mace Great Axe Peak State ------------ > --- POWER ------------ Improved Ion Engine > --- PROPULSION ------- Aluminum Leg Aluminum Leg Aluminum Leg Carbon-fiber Leg > --- UTILITY ---------- Medium Storage Unit Structural Scanner Light Armor Plating Hardened Light Armor Plating > --- WEAPON ----------- Rocket Launcher Longsword +1 > --- INVENTORY -------- Nuclear Core Nuclear Core Light Fission Core Carbon-fiber Leg Structural Scanner System Shield Minigun Plasma Cutter [Rating: 25] Favorites ----------- Power Light Ion Engine Engine Light Ion Engine Propulsion Aluminum Leg Treads Light Treads Leg Aluminum Leg Utility Medium Storage Unit Device Seismic Detector Storage Medium Storage Unit Protection Light Armor Plating Weapon Assault Rifle Energy Gun Small Laser Ballistic Gun Assault Rifle Launcher Rocket Launcher Special Weapon Mining Laser Slashing Weapon Longsword +1 Special Melee Weapon Datajack Build | -11 -10 -10 -9 -9 -9 -8 -8 ------- Run | Yrd Mat Min Mat Min Exi Min Mat Slots Evolved 4 | . . . 2 . . . 2 Power . | . . . . . . . . Propulsion 2 | . . . 1 . . . 1 Utility 2 | . . . 1 . . . 1 Weapon . | . . . . . . . . Parts Attached 29 | 7 4 1 7 1 2 3 4 Power 5 | 1 . 1 . . . 1 2 Engine 5 | 1 . 1 . . . 1 2 Core . | . . . . . . . . Reactor . | . . . . . . . . Propulsion 7 | 2 . . 2 1 . 1 1 Treads 1 | . . . 1 . . . . Leg 6 | 2 . . 1 1 . 1 1 Wheel . | . . . . . . . . Hover . | . . . . . . . . Flight . | . . . . . . . . Utility 7 | 2 1 . 3 . . . 1 Device 3 | 1 . . 2 . . . . Storage 2 | 1 1 . . . . . . Processor . | . . . . . . . . Hackware . | . . . . . . . . Protection 2 | . . . 1 . . . 1 Artifact . | . . . . . . . . Weapon 10 | 2 3 . 2 . 2 1 . Energy Gun 1 | 1 . . . . . . . Energy Cannon . | . . . . . . . . Ballistic Gun 5 | 1 2 . 2 . . . . Ballistic Cannon . | . . . . . . . . Launcher 1 | . . . . . . 1 . Special Weapon 1 | . 1 . . . . . . Impact Weapon . | . . . . . . . . Slashing Weapon 1 | . . . . . 1 . . Piercing Weapon . | . . . . . . . . Special Melee Weapon 1 | . . . . . 1 . . Unidentified Prototypes . | . . . . . . . . Parts Lost 4 | . . 1 2 . . 1 . Power 2 | . . 1 . . . 1 . Propulsion 1 | . . . 1 . . . . Utility 1 | . . . 1 . . . . Weapon . | . . . . . . . . Highest Loss Streak 2 | . . 1 2 . . 1 . To Critical Strikes . | . . . . . . . . Average Backups 9 | 3 9 9 9 9 9 10 9 Power 1 | . 1 . . . 1 3 2 Propulsion 1 | 1 2 1 . . . 1 1 Utility 2 | . 1 2 2 2 2 2 3 Weapon 3 | 1 4 5 5 4 4 1 1 Tool/Special . | . . . . . . . . Unused Backups 25 | . 1 2 3 . 1 2 16 Power 5 | . 1 . . . . . 4 Propulsion 2 | . . 1 . . . . 1 Utility 5 | . . . . . . . 5 Weapon 12 | . . 1 3 . 1 2 5 Tool/Special 1 | . . . . . . . 1 Average Slot Usage (%) 99 | . 100 100 97 95 100 100 99 Engine 12 | . 14 14 11 11 11 11 9 Treads 1 | . . . 11 4 . . . Leg 29 | . 28 28 21 28 33 33 36 Device 13 | . 14 14 20 11 11 11 9 Storage 12 | . 14 14 11 11 11 11 9 Protection 5 | . . . . 6 11 11 17 Energy Gun 1 | . 3 . . . . . . Ballistic Gun 18 | . 24 28 22 22 16 1 . Launcher 2 | . . . . . . 9 9 Slashing Weapon 2 | . . . . . 1 11 9 Peak Build Rating 25 | 7 8 8 12 12 19 20 25 Average Rating 12 | 4 7 7 10 11 12 19 24 On Entrance 10 | . 7 8 8 11 12 19 20 Naked Turns . | . . . . . . . . Heaviest Build 33 | 11 18 18 21 23 23 28 33 Greatest Support 45 | 20 20 20 20 30 30 30 45 Greatest Overweight (x) 1 | . . . 1 . . . . Average Overweight (x) . | . . . . . . . . Largest Inventory Capacity 10 | 8 10 10 10 10 10 10 10 Average Capacity 9 | 7 9 10 10 10 10 10 10 Most Carried 10 | 5 10 10 10 10 10 10 10 Average Carried 9 | 3 9 9 9 9 9 9 9 Final Capacity 10 | 8 10 10 10 10 10 10 10 Final Carried 10 | 5 10 10 9 10 10 10 10 Class Distribution -------------------- 96% | Mutant 3% | Derelict-Mutant Dominant Class ---------------- Mutant | -10/Materials Mutant | -10/Mines Mutant | -9/Materials Mutant | -9/Mines Mutant | -9/Exiles Mutant | -8/Mines Mutant | -8/Materials Resources | -11 -10 -10 -9 -9 -9 -8 -8 ----------- Run | Yrd Mat Min Mat Min Exi Min Mat Matter Collected 747 | 270 41 62 128 101 . 109 36 Remotely . | . . . . . . . . Salvage Created 736 | 19 99 115 159 58 . 225 61 Parts 61 | 2 6 7 15 8 . 11 12 Haulers Intercepted 1 | . 1 . . . . . . Recyclers Shooed 3 | 1 1 . . 1 . . . Parts Field Recycled . | . . . . . . . . Retrieved Matter . | . . . . . . . . Parts Self-Destructed . | . . . . . . . . Prevented . | . . . . . . . . Kills | -11 -10 -10 -9 -9 -9 -8 -8 ------- Run | Yrd Mat Min Mat Min Exi Min Mat Combat Hostiles Destroyed 24 | . 1 2 5 4 . 7 5 Melee 6 | . . . . . . 2 4 Guns 12 | . 1 2 5 4 . . . AOE 6 | . . . . . . 5 1 Classes Destroyed 8 | 1 2 1 1 . . 1 2 Worker 1 | . . . . . . 1 . Builder 1 | . . . . . . . 1 Tunneler 2 | 1 . . . . . 1 . Hauler 1 | . 1 . . . . . . Operator 1 | . . . . . . . 1 Swarmer 14 | . . . 3 4 . 2 5 Grunt 6 | . 1 . . . . 5 . Sentry 4 | . . 2 2 . . . . Best Kill Streak 5 | 1 2 2 3 4 . 5 3 Combat Bots Only 4 | . 1 2 3 4 . 3 2 Max Kills in Single Turn 2 | 1 1 1 1 1 . 2 2 Gunslinging . | . . . . . . . . Exploded 2 | . . . . . . 2 1 Melee 1 | . . . . . . 1 1 Uniques/NPCs Destroyed . | . . . . . . . . Combat | -11 -10 -10 -9 -9 -9 -8 -8 -------- Run | Yrd Mat Min Mat Min Exi Min Mat Hostile Shots Fired 100 | . 3 24 31 8 . 8 26 Missed 35 | . 1 7 12 4 . . 11 Hits 65 | . 2 17 19 4 . 8 15 Projectile 65 | . 2 17 19 4 . 8 15 Critical Strikes 2 | . . 2 . . . . . Damage Taken 791 | . 24 252 179 34 . 156 146 Core 104 | . . 42 21 10 . 18 13 Absorbed by Shields . | . . . . . . . . Core Remaining (%) 90 | 100 . 83 . . . 87 . Volleys Fired 48 | 4 6 7 18 6 . 4 3 Largest 2 | 2 2 2 2 2 . 1 1 Hottest 100 | 60 100 40 46 46 . 33 33 Shots Fired 88 | 8 11 14 36 12 . 4 3 Gun 80 | 8 10 14 36 12 . . . Cannon . | . . . . . . . . Launcher 7 | . . . . . . 4 3 Special 1 | . 1 . . . . . . Kinetic 74 | 4 8 14 36 12 . . . Thermal 7 | 4 3 . . . . . . Explosive 7 | . . . . . . 4 3 Electromagnetic . | . . . . . . . . Robot Hit Streak 13 | 3 4 7 13 3 . . . Robot Miss Streak 5 | 1 4 1 5 1 . 1 . Penetration Max . | . . . . . . . . Secondary Targets 1 | . . 1 . . . . . Max Gunslinging Chain 1 | . . 1 . . . . . Shots Hit Robots 60 | 5 4 12 16 7 4 6 6 Core Hits 44 | 2 2 6 9 5 . 13 7 Critical Kills . | . . . . . . . . Critical Parts Destroyed 1 | . . . 1 . . . . Critical Strikes 2 | . . . 1 . . . 1 Destroy 1 | . . . 1 . . . . Sever 1 | . . . . . . . 1 Melee Attacks 26 | . . . . . 4 6 16 Impact . | . . . . . . . . Slashing 22 | . . . . . . 6 16 Piercing . | . . . . . . . . Sneak Attacks 5 | . . . . . 4 1 . Combat Hostiles 1 | . . . . . . 1 . Follow-up Attacks . | . . . . . . . . Damage Inflicted 2120 | 42 67 166 281 131 . 843 590 Guns 611 | 42 56 154 254 105 . . . Cannons . | . . . . . . . . Explosions 818 | . . . . . . 513 305 Melee 615 | . . . . . . 330 285 Ramming 76 | . 11 12 27 26 . . . Kinetic 599 | 30 56 154 254 105 . . . Thermal 12 | 12 . . . . . . . Explosive 818 | . . . . . . 513 305 Electromagnetic . | . . . . . . . . Impact . | . . . . . . . . Slashing 615 | . . . . . . 330 285 Piercing . | . . . . . . . . Highest Corruption . | . . . . . . . . Average Corruption . | . . . . . . . . Corruption Purged . | . . . . . . . . Corruption Blocked . | . . . . . . . . Overload Shots . | . . . . . . . . Overflow Damage 144 | . . . . . . 60 84 Projectiles . | . . . . . . . . Explosions 35 | . . . . . . . 35 Melee 109 | . . . . . . 60 49 Knockbacks . | . . . . . . . . Impact . | . . . . . . . . Kinetic . | . . . . . . . . Secondary . | . . . . . . . . Self-Inflicted Damage . | . . . . . . . . Shots . | . . . . . . . . Rammed . | . . . . . . . . Targets Rammed 18 | . 1 4 7 6 . . . Kicked 18 | . 1 4 7 6 . . . Crushed . | . . . . . . . . Highest Temperature 24 | 10 10 24 . . . 9 . Average Temperature 7 | 7 7 13 . . . 4 . Received Heat Transfer 231 | . 15 108 9 . . 81 18 Siege Activations . | . . . . . . . . Martial Activations . | . . . . . . . . Shielding Activations . | . . . . . . . . Robots Disrupted . | . . . . . . . . Combat Hostiles . | . . . . . . . . Robots Corrupted . | . . . . . . . . Combat Hostiles . | . . . . . . . . Parts Fried . | . . . . . . . . Impact Corruptions . | . . . . . . . . Robots Melted . | . . . . . . . . Combat Hostiles . | . . . . . . . . Parts Melted . | . . . . . . . . Heat Transferred 25 | 25 . . . . . . . Parts Sabotaged . | . . . . . . . . Parts Stolen . | . . . . . . . . Parts Stripped . | . . . . . . . . Power Chain Reactions . | . . . . . . . . Alert | -11 -10 -10 -9 -9 -9 -8 -8 ------- Run | Yrd Mat Min Mat Min Exi Min Mat Maximum Alert Level 1 | . . . . . . 1 . Low Security (%) 97 | 100 100 100 100 100 . 62 100 Level 1 2 | . . . . . . 37 . Level 2 . | . . . . . . . . Level 3 . | . . . . . . . . Level 4 . | . . . . . . . . Level 5 . | . . . . . . . . High Security . | . . . . . . . . Max Security . | . . . . . . . . Peak Influence 230 | 5 32 40 42 80 . 230 189 Initial 74 | . . 10 5 6 . . 74 Average 37 | 1 1 3 9 19 . 171 122 Influence Increases 1085 | 5 90 40 165 90 . 370 325 Destroy 0b10 Robot/C 560 | . 20 40 100 80 . 220 100 Destroy 0b10 Robot/NC 30 | 5 5 . . . . 10 10 Destroy Leader 92 | . 2 . 20 10 . 40 20 Allied During Kill 34 | . . . . . . 34 . Successful Hack 113 | . 47 . 44 . . . 22 Disable Machine 15 | . . . . . . . 15 Destroy Structure 61 | . 1 . 1 . . 21 38 Lose Combat Pursuer 180 | . 15 . . . . 45 120 Influence Decreases 996 | 5 62 52 163 78 30 180 426 Entered New Map 187 | . . 18 11 12 30 . 116 Time Decay 729 | 5 62 34 142 66 . 110 310 Lost Part 20 | . . . 10 . . 10 . Lost Ally 60 | . . . . . . 60 . Squads Dispatched 1 | . 1 . . . . . . Investigation . | . . . . . . . . Extermination . | . . . . . . . . Reinforcement 1 | . 1 . . . . . . Assault . | . . . . . . . . Garrison . | . . . . . . . . Intercept . | . . . . . . . . Searches Triggered . | . . . . . . . . Construction Impeded . | . . . . . . . . Haulers Reinforced . | . . . . . . . . Active Scanning Responses . | . . . . . . . . Cargo Convoy Interrupts . | . . . . . . . . Stealth | -11 -10 -10 -9 -9 -9 -8 -8 --------- Run | Yrd Mat Min Mat Min Exi Min Mat Distress Signals 3 | . . . 1 . . . 2 Communications Jammed . | . . . . . . . . Distress Signals . | . . . . . . . . Times Spotted 49 | . 5 2 16 4 . 9 13 Peak Tracking Total 7 | . 2 2 7 4 . 5 5 Tactical Retreats 8 | . 1 . . . . 2 5 Traps | -11 -10 -10 -9 -9 -9 -8 -8 ------- Run | Yrd Mat Min Mat Min Exi Min Mat Traps Triggered . | . . . . . . . . Indirectly . | . . . . . . . . Trap Hack Attempts . | . . . . . . . . Triggered . | . . . . . . . . Disarmed . | . . . . . . . . Reprogrammed . | . . . . . . . . Reused . | . . . . . . . . Traps Extracted . | . . . . . . . . Installed . | . . . . . . . . Triggered . | . . . . . . . . Machines | -11 -10 -10 -9 -9 -9 -8 -8 ---------- Run | Yrd Mat Min Mat Min Exi Min Mat Machines Disabled 1 | . . . . . . . 1 Max in Single Turn 1 | . . . . . . . 1 Machines Repaired . | . . . . . . . . Machines Dismantled . | . . . . . . . . Machines Sabotaged . | . . . . . . . . Overloaded Fab Kills . | . . . . . . . . Hacking | -11 -10 -10 -9 -9 -9 -8 -8 --------- Run | Yrd Mat Min Mat Min Exi Min Mat Machines Accessed 19 | . 7 . 6 . 1 . 5 Terminals 18 | . 7 . 6 . . . 5 Fabricators . | . . . . . . . . Repair Stations . | . . . . . . . . Recycling Units . | . . . . . . . . Scanalyzers . | . . . . . . . . Garrison Access . | . . . . . . . . Total Hacks 88 | . 29 . 35 . 1 . 23 Successful 49 | . 15 . 21 . 1 . 12 Failed 38 | . 14 . 13 . . . 11 Catastrophic 1 | . 1 . . . . . . Database Lockouts 1 | . . . 1 . . . . Manual 61 | . 21 . 21 . 1 . 18 Terminals 87 | . 29 . 35 . . . 23 Fabricators . | . . . . . . . . Repair Stations . | . . . . . . . . Recycling Units . | . . . . . . . . Scanalyzers . | . . . . . . . . Garrison Access . | . . . . . . . . Terminal Hacks 23 | . 5 . 13 . 1 . 4 Robot Analysis 2 | . 1 . 1 . . . . Prototype ID Bank 4 | . . . 4 . . . . Terminal Index 2 | . . . 1 . . . 1 Locate Traps 9 | . 3 . 3 . . . 3 Dispatch Records 2 | . 1 . 1 . . . . Hauler Manifests 1 | . . . 1 . . . . Registered Components 1 | . . . 1 . . . . Zone Layout 1 | . . . 1 . . . . Proto ID Catalog 1 | . . . . . 1 . . Fabricator Hacks . | . . . . . . . . Repair Station Hacks . | . . . . . . . . Recycling Unit Hacks . | . . . . . . . . Scanalyzer . | . . . . . . . . Garrison Access Hacks . | . . . . . . . . Unauthorized Hacks 26 | . 10 . 8 . . . 8 Terminals 26 | . 10 . 8 . . . 8 Assimilate 1 | . 1 . . . . . . Botnet 6 | . 2 . 2 . . . 2 Disrupt 1 | . . . . . . . 1 Operators 2 | . 1 . 1 . . . . Skim 16 | . 6 . 5 . . . 5 Fabricators . | . . . . . . . . Repair Stations . | . . . . . . . . Recycling Units . | . . . . . . . . Scanalyzers . | . . . . . . . . Garrison Access . | . . . . . . . . Data Cores Recovered 1 | . . . . . . . 1 Used 1 | . . . . . . . 1 Hacking Detections 18 | . 7 . 6 . . . 5 Full Trace Events . | . . . . . . . . Feedback Events . | . . . . . . . . Feedback Blocked . | . . . . . . . . Robot Schematics Acquired . | . . . . . . . . Robots Built . | . . . . . . . . Authchips . | . . . . . . . . Time . | . . . . . . . . Total Robot Build Rating . | . . . . . . . . Part Schematics Acquired . | . . . . . . . . Parts Built . | . . . . . . . . Authchips . | . . . . . . . . Time . | . . . . . . . . Total Part Build Rating . | . . . . . . . . Parts Repaired . | . . . . . . . . Time . | . . . . . . . . Parts Recycled . | . . . . . . . . Recycled Matter . | . . . . . . . . Retrieved Matter . | . . . . . . . . Retrieved Components . | . . . . . . . . Parts Scanalyzed . | . . . . . . . . Part Schematics Acquired . | . . . . . . . . Parts Damaged . | . . . . . . . . Bothacking | -11 -10 -10 -9 -9 -9 -8 -8 ------------ Run | Yrd Mat Min Mat Min Exi Min Mat Used RIF Installer . | . . . . . . . . Robots Hacked 4 | . . . . . 4 . . Non-combat 3 | . . . . . 3 . . Combat 1 | . . . . . 1 . . Robot Hacks Applied 4 | . . . . . 4 . . parse_system 4 | . . . . . 4 . . Relay Couplers Released . | . . . . . . . . Fabnet Peak Effective % . | . . . . . . . . Robots Rewired . | . . . . . . . . Allies Hacked . | . . . . . . . . Hacks Repelled . | . . . . . . . . Allies | -11 -10 -10 -9 -9 -9 -8 -8 -------- Run | Yrd Mat Min Mat Min Exi Min Mat Total Allies 3 | . . . . 3 . . . Largest Group 3 | . . . . 3 3 3 . Highest-Rated Group 40 | . . . . 40 40 40 . Highest-Rated Ally 16 | . . . . 16 16 16 . Total Orders . | . . . . . . . . Ally Attacks 46 | . . . . . . 46 . Total Damage 462 | . . . . . . 462 . Kills 4 | . . . . . . 4 . Allies Corrupted . | . . . . . . . . Allies Melted . | . . . . . . . . Intel | -11 -10 -10 -9 -9 -9 -8 -8 ------- Run | Yrd Mat Min Mat Min Exi Min Mat Active Infowar (turns) 3441 | 20 1223 617 493 . 168 237 683 Structural 1580 | . . . 492 . 168 237 683 Seismic 2334 | 20 1223 617 474 . . . . Robot Analysis Total 2 | . 1 . 1 . . . . Derelict Logs Recovered 2 | . . 1 . 1 . . . Drone Launches . | . . . . . . . . Drone Recoveries . | . . . . . . . . Exploration | -11 -10 -10 -9 -9 -9 -8 -8 ------------- Run | Yrd Mat Min Mat Min Exi Min Mat Turns Passed 4081 | 75 1223 617 554 328 364 237 683 Spaces Moved 2512 | 41 497 480 327 244 281 158 484 Core 1 | 1 . . . . . . . Treads . | . . . . . . . . Legs 2511 | 40 497 480 327 244 281 158 484 Wheels . | . . . . . . . . Hover . | . . . . . . . . Flight . | . . . . . . . . Fastest Speed 50 | 50 120 120 120 120 120 120 120 Average Speed 122 | 118 120 120 135 120 120 120 120 Slowest Speed 190 | 120 120 120 190 120 120 120 120 Overloaded Moves . | . . . . . . . . Propulsion Burnouts . | . . . . . . . . Robots Hopped . | . . . . . . . . Potential Cave-ins . | . . . . . . . . Cave-ins Triggered . | . . . . . . . . Exploration Rate (%) 49 | 4 58 95 31 72 55 35 44 Regions Visited 7 Branch Regions 4 Pre-discovered Areas 3 | . 1 1 1 . . . . Known Exits Taken 2 | . . . 1 . . 1 . Unknown Exits Taken 5 | 1 1 1 . 1 1 . . Scrap Searched 4 | . . 1 . 2 . 1 . Spaces Dug 48 | . 1 . . . . 22 25 Terrain Destroyed 65 | . 1 . . . . 27 37 Melee 8 | . . . . . . . 8 Projectile 1 | . 1 . . . . . . AOE 56 | . . . . . . 27 29 Terrain Rammed . | . . . . . . . . Walls Destroyed . | . . . . . . . . Machines Disabled . | . . . . . . . . Actions | -11 -10 -10 -9 -9 -9 -8 -8 --------- Run | Yrd Mat Min Mat Min Exi Min Mat Total 3423 | 57 1112 509 404 267 307 197 570 Wait 718 | . 594 13 30 5 11 19 46 Move 2505 | 40 496 479 326 243 280 157 484 Hop . | . . . . . . . . Pick Up 42 | 6 5 3 8 3 4 4 9 Fast Attach 10 | 6 2 . 1 1 . . . Attach 14 | 1 . 1 5 1 3 1 2 Detach 3 | . 2 . 1 . . . . Swap 9 | . 3 . 1 . 1 2 2 Drop 30 | . 3 2 7 2 4 4 8 Fire 48 | 4 6 7 18 6 . 4 3 Melee 26 | . . . . . 4 6 16 Ram . | . . . . . . . . Kick 18 | . 1 4 7 6 . . . Crush . | . . . . . . . . Escape Stasis . | . . . . . . . . Rewire . | . . . . . . . . Trap . | . . . . . . . . Miscellaneous . | . . . . . . . . Route ------- -11/Scrapyard -10/Materials (discovered 4 exits: *Mat / [*Min x2] / Sub) -10/Mines (discovered 3 exits: *Mat x2 / Sub) -9/Materials (discovered 5 exits: Mat x3 / *Min x2) -9/Mines (discovered 2 exits: *Mat / *Exi) -9/Exiles -8/Mines -8/Materials (discovered 2 exits: [*Fac] / [*Sto]) History --------- Turn | Location | Event 11 | -11/Scrapyard | Discovered new exit (range 14) 76 | -11/Scrapyard | Entered Materials 122 | -10/Materials | Discovered new exit (range 8) 296 | -10/Materials | Discovered new exit (range 3) 308 | -10/Materials | Build established: Mutant 806 | -10/Materials | Learned location of 1 exit from Storage 812 | -10/Materials | Discovered new exit (range 6) 844 | -10/Materials | Learned Storage stockpile data 874 | -10/Materials | Identified exit to Subcaves 905 | -10/Materials | Learned location of Recycling (-8) 906 | -10/Materials | Learned Storage emergency access door positions 916 | -10/Materials | Learned Storage trap positions 1299 | -10/Materials | Entered Mines 1364 | -10/Mines | Learned location of Storage (-8) 1372 | -10/Mines | Discovered new exit (range 5) 1618 | -10/Mines | Received a Rocket Launcher from a helpful Derelict 1688 | -10/Mines | Discovered new exit (range 8) 1700 | -10/Mines | Learned Materials terminal intel 1916 | -10/Mines | Entered Materials 1916 | -9/Materials | Evolved 2 slots: Propulsion x1, Utility x1 1917 | -9/Materials | Loaded intel: 12 terminal locations 2088 | -9/Materials | Central database locked down 2187 | -9/Materials | Discovered new exit (range 16) 2204 | -9/Materials | Identified exit to Materials 2306 | -9/Materials | Learned location of 1 exit from Storage 2343 | -9/Materials | Learned 2 Storage zone layouts 2409 | -9/Materials | Identified exit to Mines 2470 | -9/Materials | Entered Mines 2483 | -9/Mines | Met a Derelict bent on vengeance 2569 | -9/Mines | Discovered exit to Materials (range 6) 2592 | -9/Mines | Found DCF Scrap (10 items) 2668 | -9/Mines | Learned location of 1 exit from Lower Caves 2778 | -9/Mines | Assisted by bots powering up and referring to "LRC-V3" 2788 | -9/Mines | Deemed a non-threat by the Exiles lab entrance 2788 | -9/Mines | Discovered new exit (range 5) 2798 | -9/Mines | Entered Exiles 2798 | -9/Exiles | Accompanied by 3 allies 2828 | -9/Exiles | Met 8R-AWN 2853 | -9/Exiles | Met EX-HEX 2900 | -9/Exiles | Met EX-DEC 2942 | -9/Exiles | Met EX-BIN 2971 | -9/Exiles | Aligned with FarCom system 2972 | -9/Exiles | Given EX-Vault access code 3001 | -9/Exiles | Opened EX-Vault 3011 | -9/Exiles | Found Longsword +1 3037 | -9/Exiles | Warned to stay clear of 0b10 Research branches 3135 | -9/Exiles | Discovered new exit (range 14) 3162 | -9/Exiles | Left Exiles lab with Longsword +1 3162 | -9/Exiles | Entered Mines 3162 | -8/Mines | Accompanied by 3 allies 3351 | -8/Mines | Discovered exit to Materials (range 6) 3399 | -8/Mines | Entered Materials 3399 | -8/Materials | Evolved 2 slots: Propulsion x1, Utility x1 3658 | -8/Materials | Discovered new exit (range 16) 3744 | -8/Materials | Discovered new exit (range 3) 4082 | -8/Materials | Self-destructed Last Messages --------------- Please expand to 1 more system! 03815_ Dropped Imp. Ion Engine. 03815_ Acquired Deuterium Engine. 03867_ Dropped Great Axe. 03867_ Acquired Hacking Suite. 03892_ S-10 Pest destroyed. 03894_ Acquired 10 matter. 03902_ Acquired 15 matter. 03959_ U-05 Engineer lays Concrete. 04013_ U-05 Engineer builds a Wall. 04082_ Connecting with Terminal... >>Trojan(Skim) Trojan loaded successfully. Testing... Terminal linked with 4 systems. Skimming routine engaged. Thanks from A0-MCA. >>Traps(Locate) Found 6 traps in 1 array: 6x Shock Trap Map updated. Map ----- +----------------------------------------------------+ | +######+########## # """"" ### ![[ | | # """"" ####/############ | | T + """"" # ######### | | # """ # ##??????? | | ##+############### # # ##??????? | | #################= # ##??????? | | "" "" ########################### "" ##??????? | | "" [ " ##?????????????############ """ ##??????? | | "" " ##???????????????????????## R" ##??????? | | [ ##???????????????????????## """ ##??????? | | ##???????????????????????##] ## ?????? | | ! ##???????????????????????########### ?????? | | ] ##???????????????????????####= # ?????? | | ### #####?????????????????????????## ]# ?????? | | #########?????????????????????????##!!! # ?????? | | ??####????????????????????????????##!! ! ##?????? | | ??????????????????????????????????##!! ##?????? | | ?????????????????????????########### ######## | | ?????????????????????????###############+######### | | ?????????????????????????## | | ?????????????????????????## | | ????????????????########### | | ????????????????########### ###+################ | | ????????????????## # ## ######### | | ????????????????## T # ## """ ##?????## | | ????????????????## = ! @# ## """ ##?????## | | ????????????????## # ## """ ##?????## | | ????????????????## + / ##?????## | | ????????????????## """"" # ## """ ##?????## | | ????????????????## """"" # ## """ ! ##?????## | | ????????????????##! """"" # ## """ ##?????## | | ????????????????## # ## ##?????## | | ????????????????####+###### ############?????### | | ???????????????????# ##### ?????### | | ????????????????????????? ?????????????????? | | ???????????????????????? ????????????????? | | ???????????????????????? ????????????????? | | ????????????????????? ???????????????? | | ?????????????????????##### ??????????????? | | ?????????????????????##### """ "??????????????? | | ????????????????????????## """ ???????????????? | | ????????????????????????## ????????????????????? | | ???????????????????????? ????????????????????? | | ????????????????????^^^^^?^??????????????????????? | | ?????????????????????????????????????????????????? | | ?????????????????????????????????????????????????? | | ?????????????????????????????????????????????????? | | ?????????????????????????????????????????????????? | | ?????????????????????????????????????????????????? | | ?????????????????????????????????????????????????? | +----------------------------------------------------+ Best States ------------- Heat Dissipation 38 Energy Generation 12 Energy Capacity 265 Matter Stores 300 Matter Capacity 300 Sight Range 16 Terrain Scan Density 10 Armor Coverage 300 Evasion (%) 55 Recoil Reduction 1 Item Schematics ----------------- None Robot Schematics ------------------ None Fabricated ------------ Nothing Repaired ---------- Nothing Alien Tech Used ----------------- None Achievements -------------- None Challenges ------------ None Game ------ Seed RapidWarpGravjet Manual? 0 Play Time 00:58:45 Cumulative 60.6 hours Start 2025.08.04 @ 09:30:39 End 2025.08.30 @ 07:08:19 Sessions 7 Manual Loads 0 Difficulty Rogue Special Mode None Game No. 118 Rogue 118 Adventurer 0 Explorer 0 Win Type - Total 1 Types 1/0/0/0/0/0/0/0/0/0 Lore% 14 Gallery% 33 Achievement% 31 Wizard Run 0 Options --------- Layout 1 ASCII 0 Keyboard 0 Movement Mouse Keybinds 0 Fullscreen 1 Font 20/SmallcapsGlow Map View 54x42 Zoom Use 0% Tactical HUD 1 Map Filters NONE Filters NONE Steam 0 RUN: e365a8b3-f37d-41c7-8d4c-3aaf1849ab6a